[Event "Oslo Chess Festival 2018"]
[Site "Oslo"]
[Date "2018.10.04"]
[Round "6"]
[White "Sriram, Jha"]
[Black "Van Zyl-Rudd, Jack"]
[Result "1/2-1/2"]
[ECO "D02"]
[WhiteElo "2394"]
[BlackElo "2265"]
[Annotator "NA"]
[PlyCount "77"]
[EventDate "2018.09.30"]
[EventCountry "NOR"]
[SourceTitle "playchess.com"]
[Source "ChessBase"]
[SourceQuality "1"]
[TimeControl "90/30+30:0"]

1. Nf3 {[%emt 0:00:00]} d5 {[%emt 0:00:00]} 2. g3 {[%emt 0:00:00]} Nc6 {[%emt 0:00:00]} 3. d4 {[%emt 0:00:00]} Bg4 {[%emt 0:00:00]} 4. Bg2 {[%emt 0:00:00]} Qd7 {[%emt 0:00:00]} 5. O-O {[%emt 0:00:00]} O-O-O {[%emt 0:00:00]} 6. c3 {[%emt 0:00:00] D02: 1 d4 d5 2 Nf3 sidelines, including 2...Nf6 3 g3 and 2...Nf6 3 Bf4} (6. c4 dxc4 7. Be3 e5 8. d5 Nge7 9. Nc3 Nxd5 10. Nxd5 Qxd5 11. Qc2 Bxf3 12. Bxf3 Qe6 13. Rfc1 a6 14. Bxc6 Qxc6 {0-1 (24) Bok,B (2600)-Van Foreest,J (2606) Amsterdam 2017}) 6... h5 {[%emt 0:00:00]} 7. b4 {[%emt 0:00:00]} f6 {[%emt 0:00:00]} 8. Nbd2 {[%emt 0:00:00]} Bh3 {[%emt 0:00:00]} 9. b5 {[%emt 0:00:00]} Nb8 {[%emt 0:00:00]} 10. Bxh3 {[%emt 0:00:00]} Qxh3 {[%emt 0:00:00]} 11. Qa4 {[%emt 0:00:00]} g5 {[%emt 0:00:00]} (11... e5 $11 {remains equal.}) 12. Qxa7 {[%emt 0:00:00]} Nh6 $146 {[%emt 0:00:00]} ({Predecessor:} 12... h4 $16 {was worth a try.} 13. Nb3 Rd6 {1-0 (24) Molnar,L (2117)-Antal,G (2448) Budapest 2001}) 13. Nb3 {[%emt 0:00:00]} b6 {[%emt 0:00:00]} 14. a4 $2 {[%emt 0:00:00]} (14. c4 $18) 14... h4 $1 {[%emt 0:00:00] [#]} 15. a5 {[%emt 0:00:00]} ({Better is} 15. Rb1 $1 $16 Kd7 16. Bxg5 hxg3 17. fxg3 (17. Bf4 gxh2+ 18. Kh1 Ke8 $17)) 15... hxg3 {[%emt 0:00:00]} (15... Ng4 $11 {keeps the balance.} 16. Bxg5 hxg3) 16. fxg3 {[%emt 0:00:00]} ({Worse is} 16. axb6 gxh2+ 17. Nxh2 cxb6 $17) 16... Ng4 {[%emt 0:00:00]} 17. axb6 {[%emt 0:00:00]} cxb6 {[%emt 0:00:00] [#]} 18. Nc5 {[%emt 0:00:00]} ({Lieber nicht} 18. Qxb6 Nxh2 19. Qc5+ Kd7 $17) (18. Rf2 $1 $16 Nxf2 19. Qxb6 (19. Kxf2 g4 $17)) 18... bxc5 {[%emt 0:00:00]} 19. Qxc5+ {[%emt 0:00:00]} Kd7 {[%emt 0:00:00]} 20. Qxd5+ {[%emt 0:00:00]} Ke8 {[%emt 0:00:00]} 21. Qf5 {[%emt 0:00:00]} Qh5 {[%emt 0:00:00]} 22. h4 {[%emt 0:00:00]} gxh4 {[%emt 0:00:00]} 23. Nxh4 {[%emt 0:00:00]} Qxf5 {[%emt 0:00:00]} 24. Rxf5 {[%emt 0:00:00]} Rg8 {[%emt 0:00:00]} 25. Rf3 {[%emt 0:00:00]} (25. Rh5 $14) 25... e6 $11 {[%emt 0:00:00]} 26. Ba3 {[%emt 0:01:32]} Bxa3 {[%emt 0:00:22]} 27. Rxa3 {[%emt 0:00:01]} Ke7 {[%emt 0:01:10]} 28. Ng2 {[%emt 0:02:54]} e5 {[%emt 0:03:40]} 29. Ne3 {[%emt 0:01:49]} Nxe3 {[%emt 0:01:03]} 30. Rxe3 {[%emt 0:00:02]} Kd6 {[%emt 0:00:58]} 31. Rf3 {[%emt 0:01:38]} Kd5 {[%emt 0:02:27]} 32. Rxf6 {[%emt 0:02:55]} exd4 {[%emt 0:01:16]} 33. cxd4 {[%emt 0:00:15]} Kxd4 {[%emt 0:00:11]} 34. b6 {[%emt 0:00:32]} Kc5 {[%emt 0:01:17]} 35. Rc3+ {[%emt 0:02:19]} Kb4 {[%emt 0:00:29]} 36. Rcf3 {[%emt 0:01:05]} Kb5 {[%emt 0:02:38]} 37. Kf2 {[%emt 0:00:57]} Nd7 {[%emt 0:01:02]} 38. Rd6 {[%emt 0:00:43]} Nc5 {[%emt 0:00:42]} 39. Rh6 {[%emt 0:01:06]} 1/2-1/2

[Event "Oslo Chess Festival 2018"]
[Site "Oslo"]
[Date "2018.10.04"]
[Round "6"]
[White "Haug, Johannes"]
[Black "Bruaset, Eivind"]
[Result "1-0"]
[ECO "C18"]
[WhiteElo "2391"]
[BlackElo "2048"]
[Annotator "NA"]
[PlyCount "81"]
[EventDate "2018.09.30"]
[EventCountry "NOR"]
[SourceTitle "playchess.com"]
[Source "ChessBase"]
[SourceQuality "1"]
[TimeControl "90/30+30:0"]

1. e4 {[%emt 0:00:00]} e6 {[%emt 0:00:00]} 2. d4 {[%emt 0:00:00]} d5 {[%emt 0:00:00]} 3. Nc3 {[%emt 0:00:00]} Bb4 {[%emt 0:00:00]} 4. e5 {[%emt 0:00:00]} c5 {[%emt 0:00:00]} 5. a3 {[%emt 0:00:00]} Bxc3+ {[%emt 0:00:00]} 6. bxc3 {[%emt 0:00:00]} Ne7 {[%emt 0:00:00]} 7. Qg4 {[%emt 0:00:00]} Kf8 {[%emt 0:00:00]} 8. a4 {[%emt 0:00:00]} Nbc6 {[%emt 0:00:00] C18: French: 3 Nc3 Bb4: Main line: 7 h4 and 7 Qg4} (8... Qc7 9. Qd1 Kg8 10. Nf3 b6 11. a5 bxa5 12. Ba3 c4 13. Ng5 Nbc6 14. Be2 f6 15. Nf3 fxe5 16. Bxe7 Qxe7 17. Nxe5 Nxe5 18. dxe5 {½-½ (38) Zherebukh,Y (2633)-Akobian,V (2640) Saint Louis 2018}) 9. Nf3 {[%emt 0:00:00]} Qa5 {[%emt 0:00:00]} 10. Bd2 {[%emt 0:00:00]} Bd7 {[%emt 0:00:00]} 11. Be2 {[%emt 0:00:00]} Ng6 $146 {[%emt 0:00:00]} ({Predecessor:} 11... Rc8 12. O-O Qc7 13. h4 h5 14. Qf4 Nf5 15. Bd3 Nce7 16. Rfe1 {0-1 (99) Gongora Reyes,M (2466)-Espineira Gonzalez,D (2310) Villagarcia de Arosa 2005}) 12. h4 {[%emt 0:00:00]} h5 {[%emt 0:00:00]} 13. Qg5 {[%emt 0:00:00]} Qd8 {[%emt 0:00:00]} 14. Qe3 {[%emt 0:00:00]} Rc8 {[%emt 0:00:00]} 15. Ng5 {[%emt 0:00:00]} ({Don't play} 15. dxc5 $6 Qc7 $11) 15... Qe8 {[%emt 0:00:00]} 16. g4 {[%emt 0:00:00]} (16. a5 $14 {stays ahead.}) 16... hxg4 {[%emt 0:00:00]} 17. Bxg4 {[%emt 0:00:00]} Na5 {[%emt 0:00:00]} 18. h5 {[%emt 0:00:00]} Nc4 {[%emt 0:00:00]} 19. Qf3 {[%emt 0:00:00]} Ngxe5 {[%emt 0:00:00]} 20. dxe5 {[%emt 0:00:00]} Nxe5 {[%emt 0:00:00]} 21. Qg3 {[%emt 0:00:00]} Nxg4 {[%emt 0:00:00]} 22. Qxg4 {[%emt 0:00:00]} e5 {[%emt 0:00:00]} (22... f6 $142) 23. Qg3 {[%emt 0:00:00]} ({White must play} 23. Qf3 $16) 23... Bf5 {[%emt 0:00:00]} 24. h6 {[%emt 0:00:00]} Rxh6 $16 {[%emt 0:00:00]} 25. Rxh6 {[%emt 0:04:49]} gxh6 {[%emt 0:00:00]} 26. Nf3 {[%emt 0:00:10]} Rc6 {[%emt 0:00:00]} 27. Nxe5 {[%emt 0:04:56]} Rg6 {[%emt 0:00:00]} 28. Qh2 {[%emt 0:00:10]} f6 {[%emt 0:00:00]} 29. Bxh6+ {[%emt 0:02:52]} Kg8 {[%emt 0:00:00]} 30. Bf4 {[%emt 0:01:08]} fxe5 {[%emt 0:07:33]} 31. Bxe5 {[%emt 0:00:06]} Rh6 {[%emt 0:01:11]} 32. Qxh6 {[%emt 0:00:49]} Qxe5+ {[%emt 0:00:01]} 33. Kd2 {[%emt 0:01:23]} d4 {[%emt 0:00:01]} 34. Rg1+ {[%emt 0:00:34]} Kf7 {[%emt 0:00:01]} 35. Qh5+ {[%emt 0:00:26]} Kf8 {[%emt 0:00:34]} 36. Qf3 {[%emt 0:00:35]} dxc3+ {[%emt 0:00:40]} 37. Kc1 {[%emt 0:00:23]} Ke8 {[%emt 0:04:49]} 38. Qg3 {[%emt 0:00:35]} Qe4 {[%emt 0:01:19]} 39. Qxc3 {[%emt 0:00:23]} Qf4+ {[%emt 0:02:20]} 40. Kb2 {[%emt 0:00:35]} Qxf2 {[%emt 0:00:40]} 41. Qe5+ {[%emt 0:00:00]} 1-0

[Event "Oslo Chess Festival 2018"]
[Site "Oslo"]
[Date "2018.10.04"]
[Round "6"]
[White "Kaasen, Tor Fredrik"]
[Black "Solberg, Joachim"]
[Result "1-0"]
[ECO "E01"]
[WhiteElo "2388"]
[BlackElo "2188"]
[Annotator "NA"]
[PlyCount "105"]
[EventDate "2018.09.30"]
[EventCountry "NOR"]
[SourceTitle "playchess.com"]
[Source "ChessBase"]
[SourceQuality "1"]
[TimeControl "90/30+30:0"]

1. d4 {[%emt 0:00:00]} d5 {[%emt 0:00:00]} 2. c4 {[%emt 0:00:00]} c6 {[%emt 0:00:00]} 3. Nf3 {[%emt 0:00:00]} Nf6 {[%emt 0:00:00]} 4. g3 {[%emt 0:00:00]} e6 {[%emt 0:00:00]} 5. Bg2 {[%emt 0:00:00]} Bb4+ {[%emt 0:00:00]} 6. Nbd2 {[%emt 0:00:00] E01: Catalan: Early deviations} dxc4 {[%emt 0:00:00]} 7. O-O {[%emt 0:00:00]} b5 {[%emt 0:00:00]} 8. Qc2 {[%emt 0:00:00]} (8. b3 cxb3 9. Nxb3 O-O 10. Ne5 Bb7 11. Nc5 Bxc5 12. dxc5 Nfd7 13. Bf4 Nxc5 14. Qc2 {1-0 (32) Eljanov,P (2717)-Fridman,D (2649) Berlin 2015}) 8... O-O {[%emt 0:00:00]} 9. b3 {[%emt 0:00:00]} cxb3 {[%emt 0:00:00]} 10. Nxb3 {[%emt 0:00:00]} Bb7 {[%emt 0:00:00]} 11. a4 {[%emt 0:00:00]} Nbd7 {[%emt 0:00:00]} 12. Ne1 $146 {[%emt 0:00:00]} ({Predecessor:} 12. Rd1 Qe7 13. e4 h6 {0-1 (45) Janaszak,D (2319)-Socko,M (2495) Warsaw 2010}) 12... Rc8 {[%emt 0:00:00]} 13. Nd3 {[%emt 0:00:00]} Be7 {[%emt 0:00:00]} 14. Rd1 {[%emt 0:00:00]} Nd5 {[%emt 0:00:00]} 15. Nbc5 {[%emt 0:00:00]} Nxc5 {[%emt 0:00:00]} 16. Nxc5 {[%emt 0:00:00]} Bxc5 {[%emt 0:00:00]} 17. dxc5 {[%emt 0:00:00]} Qa5 {[%emt 0:00:00]} 18. Bb2 {[%emt 0:00:00]} b4 {[%emt 0:00:00]} 19. Be5 {[%emt 0:00:00]} Nc3 {[%emt 0:00:00]} 20. Rd7 {[%emt 0:00:00]} Qxc5 {[%emt 0:00:00]} 21. Bd4 {[%emt 0:00:00]} Qc4 {[%emt 0:00:00]} 22. Bxc3 {[%emt 0:00:00]} Ba8 {[%emt 0:00:00]} 23. Rd3 {[%emt 0:00:00]} (23. Be4 $1 $14 bxc3 24. Bxh7+ Kh8 25. Bd3) 23... c5 {[%emt 0:00:00]} 24. Bxa8 {[%emt 0:00:00]} Rxa8 {[%emt 0:00:00]} 25. Rc1 {[%emt 0:00:00]} bxc3 {[%emt 0:00:00]} 26. Rxc3 {[%emt 0:00:00]} Qd4 {[%emt 0:00:00]} 27. e3 {[%emt 0:00:00]} Qd6 {[%emt 0:00:00]} 28. Rxc5 {[%emt 0:00:00]} Rfd8 {[%emt 0:00:00]} 29. Rc6 {[%emt 0:00:00]} Qb4 {[%emt 0:00:00]} (29... Qd5 $14) 30. Rc7 {[%emt 0:00:00]} a5 {[%emt 0:00:00]} 31. Rb1 {[%emt 0:00:00]} Qg4 {[%emt 0:00:00] [#]} ({Black should try} 31... Qd6) 32. Kg2 $1 {[%emt 0:00:00]} h6 {[%emt 0:00:00]} 33. Rbb7 {[%emt 0:02:45]} Rf8 {[%emt 0:00:00]} 34. Rb5 $18 {[%emt 0:01:31]} f5 {[%emt 0:00:00]} 35. Rbb7 {[%emt 0:01:22]} Rf6 {[%emt 0:00:19]} 36. Qc6 {[%emt 0:02:15]} Raf8 {[%emt 0:00:26]} 37. h3 {[%emt 0:02:17]} Qg6 {[%emt 0:01:18]} 38. Ra7 {[%emt 0:00:49]} Kh7 {[%emt 0:04:37]} 39. Qb7 {[%emt 0:02:18]} Rg8 {[%emt 0:00:23]} 40. Kh2 {[%emt 0:03:42]} f4 {[%emt 0:00:57]} 41. exf4 {[%emt 0:01:10]} e5 {[%emt 0:00:15]} 42. Rxa5 {[%emt 0:00:00]} exf4 {[%emt 0:00:00]} 43. g4 {[%emt 0:00:00]} Rb6 {[%emt 0:00:00]} 44. Qf3 {[%emt 0:00:00]} Rb4 {[%emt 0:00:00]} 45. Raa7 {[%emt 0:00:00]} Qd6 {[%emt 0:00:00]} 46. Rd7 {[%emt 0:00:00]} Qe5 {[%emt 0:00:00]} 47. Qd5 {[%emt 0:00:00]} Qb2 {[%emt 0:00:00]} 48. Qd2 {[%emt 0:00:00]} Qe5 {[%emt 0:00:00]} 49. Qd3+ {[%emt 0:00:00]} Kh8 {[%emt 0:00:00]} 50. Qd6 {[%emt 0:00:00]} Qxd6 {[%emt 0:00:00]} 51. Rxd6 {[%emt 0:00:00]} Rc8 {[%emt 0:00:01]} 52. Rd2 {[%emt 0:00:00]} Rc3 {[%emt 0:00:51]} 53. Rd8+ {[%emt 0:01:17]} 1-0

[Event "Oslo Chess Festival 2018"]
[Site "Oslo"]
[Date "2018.10.04"]
[Round "6"]
[White "Cherniaev, Alexander"]
[Black "Nordquelle, Daniel"]
[Result "1-0"]
[ECO "E04"]
[WhiteElo "2384"]
[BlackElo "2235"]
[Annotator "RC"]
[PlyCount "27"]
[EventDate "2018.09.30"]
[EventCountry "NOR"]
[SourceTitle "playchess.com"]
[Source "ChessBase"]
[SourceQuality "1"]
[TimeControl "90/30+30:0"]

1. d4 {[%emt 0:00:00]} e6 {[%emt 0:00:00]} 2. c4 {[%emt 0:00:00]} d5 {[%emt 0:00:00]} 3. g3 {[%emt 0:00:00]} Nf6 {[%emt 0:00:00]} 4. Nf3 {[%emt 0:00:00]} dxc4 {[%emt 0:00:00]} 5. Bg2 {[%emt 0:00:00]} a6 {[%emt 0:00:00]} 6. O-O {[%emt 0:00:00]} Nc6 {[%emt 0:00:00]} 7. e3 {[%emt 0:00:00]} Bd7 {[%emt 0:00:00]} 8. Qe2 {[%emt 0:00:00]} b5 {[%emt 0:00:00]} 9. b3 {[%emt 0:00:00]} cxb3 {[%emt 0:00:00]} 10. axb3 {[%emt 0:00:00]} Bd6 {[%emt 0:00:00]} 11. Bb2 {[%emt 0:00:00]} Qe7 {[%emt 0:00:00]} 12. Rc1 {[%emt 0:00:00]} Ra7 {[%emt 0:00:00]} 13. Ne5 {[%emt 0:00:00]} Nd5 {[%emt 0:00:00]} 14. Nxc6 {[%emt 0:00:00]} 1-0

[Event "Oslo Chess Festival 2018"]
[Site "Oslo"]
[Date "2018.10.04"]
[Round "6"]
[White "Mikalsen, Erlend"]
[Black "Korneev, Oleg"]
[Result "1/2-1/2"]
[ECO "C30"]
[WhiteElo "2332"]
[BlackElo "2560"]
[Annotator "ChessBase"]
[PlyCount "109"]
[EventDate "2018.09.30"]
[EventCountry "NOR"]
[SourceTitle "playchess.com"]
[Source "ChessBase"]
[SourceQuality "1"]
[TimeControl "90/30+30:0"]

1. e4 {[%emt 0:00:00]} e5 {[%emt 0:00:00]} 2. Nc3 {[%emt 0:00:00]} Nc6 {[%emt 0:00:00]} 3. Bc4 {[%emt 0:00:00]} Nf6 {[%emt 0:00:00]} 4. d3 {[%emt 0:00:00]} Bc5 {[%emt 0:00:00]} 5. f4 {[%emt 0:00:00]} d6 {[%emt 0:00:00]} 6. Nf3 {[%emt 0:00:00]} a6 {[%emt 0:00:00]} 7. f5 {[%emt 0:00:00]} b5 {[%emt 0:00:00]} 8. Bb3 {[%emt 0:00:00]} Na5 {[%emt 0:00:00]} 9. Qe2 {[%emt 0:00:00]} Nxb3 {[%emt 0:00:00]} 10. axb3 {[%emt 0:00:00]} Bb7 {[%emt 0:00:00]} 11. Be3 {[%emt 0:00:00]} Bxe3 {[%emt 0:00:00]} 12. Qxe3 {[%emt 0:00:00]} O-O {[%emt 0:00:00]} 13. O-O-O {[%emt 0:00:00]} b4 {[%emt 0:00:00]} 14. Nb1 {[%emt 0:00:00]} a5 {[%emt 0:00:00]} 15. g4 {[%emt 0:00:00]} Nxg4 {[%emt 0:00:00]} 16. Qd2 {[%emt 0:00:00]} Kh8 {[%emt 0:00:00]} 17. Rhg1 {[%emt 0:00:00]} Nf6 {[%emt 0:00:00]} 18. Qg5 {[%emt 0:00:00]} Rg8 {[%emt 0:00:00]} 19. Rg3 {[%emt 0:00:00]} h6 {[%emt 0:00:00]} 20. Qh4 {[%emt 0:00:00]} a4 {[%emt 0:00:00]} 21. bxa4 {[%emt 0:00:00]} Rxa4 {[%emt 0:00:00]} 22. Rdg1 {[%emt 0:00:00]} Ra8 {[%emt 0:00:00]} 23. Rh3 {[%emt 0:00:00]} Qe7 {[%emt 0:00:00]} 24. Qe1 {[%emt 0:00:00]} b3 {[%emt 0:00:00]} 25. c4 {[%emt 0:00:00]} c6 {[%emt 0:00:00]} 26. Qc3 {[%emt 0:00:00]} d5 {[%emt 0:00:00]} 27. Nxe5 {[%emt 0:00:00]} Rad8 {[%emt 0:13:10]} 28. Ng4 {[%emt 0:00:00]} Nxg4 {[%emt 0:00:13]} 29. Rxg4 {[%emt 0:00:00]} f6 {[%emt 0:01:04]} 30. Qxb3 {[%emt 0:03:38]} dxe4 {[%emt 0:00:30]} 31. Rxe4 {[%emt 0:05:21]} Qd7 {[%emt 0:00:29]} 32. Rhe3 {[%emt 0:02:32]} Bc8 {[%emt 0:00:26]} 33. Rf4 {[%emt 0:02:03]} Qd6 {[%emt 0:00:11]} 34. Rf2 {[%emt 0:00:43]} Qc5 {[%emt 0:00:06]} 35. Ref3 {[%emt 0:00:40]} Rge8 {[%emt 0:00:03]} 36. Nd2 {[%emt 0:00:21]} Re3 {[%emt 0:01:10]} 37. Rxe3 {[%emt 0:03:01]} Qxe3 {[%emt 0:00:02]} 38. Rf3 {[%emt 0:00:07]} Qg1+ {[%emt 0:00:46]} 39. Kc2 {[%emt 0:00:05]} Re8 {[%emt 0:01:00]} 40. Qb8 {[%emt 0:01:06]} Kh7 {[%emt 0:00:48]} 41. Qg3 {[%emt 0:00:00]} Qxg3 {[%emt 0:00:00]} 42. hxg3 {[%emt 0:00:00]} Re5 {[%emt 0:00:00]} 43. g4 {[%emt 0:00:00]} Kg8 {[%emt 0:00:00]} 44. d4 {[%emt 0:00:00]} Re2 {[%emt 0:00:00]} 45. Kc3 {[%emt 0:00:00]} Rg2 {[%emt 0:00:00]} 46. Rf4 {[%emt 0:00:00]} g5 {[%emt 0:00:00]} 47. fxg6 {[%emt 0:00:00]} Kg7 {[%emt 0:00:00]} 48. d5 {[%emt 0:00:00]} cxd5 {[%emt 0:00:00]} 49. c5 {[%emt 0:00:00]} Rg3+ {[%emt 0:00:00]} 50. Kd4 {[%emt 0:00:00]} Kxg6 {[%emt 0:00:00]} 51. Kxd5 {[%emt 0:00:00]} Rd3+ {[%emt 0:00:00]} 52. Rd4 {[%emt 0:00:00]} Bb7+ {[%emt 0:00:00]} 53. Kc4 {[%emt 0:00:00]} Ba6+ {[%emt 0:00:00]} 54. Kd5 {[%emt 0:00:00]} Bb7+ {[%emt 0:00:00]} 55. Kc4 {[%emt 0:00:00]} 1/2-1/2

[Event "Oslo Chess Festival 2018"]
[Site "Oslo"]
[Date "2018.10.04"]
[Round "6"]
[White "Salles, Louis"]
[Black "Lindbol, Aleksander"]
[Result "1-0"]
[ECO "B67"]
[WhiteElo "2247"]
[BlackElo "2166"]
[Annotator "NA"]
[PlyCount "30"]
[EventDate "2018.09.30"]
[EventCountry "NOR"]
[SourceTitle "playchess.com"]
[Source "ChessBase"]
[SourceQuality "1"]
[TimeControl "90/30+30:0"]

1. e4 {[%emt 0:00:03]} c5 2. Nf3 {[%emt 0:00:02]} d6 {[%emt 0:00:02]} 3. d4 cxd4 4. Nxd4 Nf6 {[%emt 0:00:02]} 5. Nc3 Nc6 {[%emt 0:00:02]} 6. Bg5 {[%emt 0:00:01]} e6 7. Qd2 {[%emt 0:00:01]} a6 8. O-O-O {[%emt 0:00:01]} Bd7 {[%emt 0:00:02]} 9. f4 {[%emt 0:00:04]} Be7 10. Nf3 {[%emt 0:00:29]} h6 {[%emt 0:00:06]} 11. Bh4 b5 {[%emt 0:00:01]} 12. e5 b4 {[%emt 0:00:02]} 13. exd6 {[%emt 0:00:08]} bxc3 {[%emt 0:00:02]} 14. Qxc3 {[%emt 0:00:01]} Bf8 {[%emt 0:00:02]} 15. f5 {[%emt 0:00:04]} Be7 {[%emt 0:00:08]} 1-0

[Event "Oslo Chess Festival 2018"]
[Site "Oslo"]
[Date "2018.10.04"]
[Round "6"]
[White "Ingebretsen, Jens E"]
[Black "Vestby-Ellingsen, Mads"]
[Result "1/2-1/2"]
[ECO "C85"]
[WhiteElo "2160"]
[BlackElo "2410"]
[Annotator "NA"]
[PlyCount "101"]
[EventDate "2018.09.30"]
[EventCountry "NOR"]
[SourceTitle "playchess.com"]
[Source "ChessBase"]
[SourceQuality "1"]
[TimeControl "90/30+30:0"]

1. e4 {[%emt 0:00:00]} e5 {[%emt 0:00:00]} 2. Nf3 {[%emt 0:00:00]} Nc6 {[%emt 0:00:00]} 3. Bb5 {[%emt 0:00:00]} a6 {[%emt 0:00:00]} 4. Ba4 {[%emt 0:00:00]} Nf6 {[%emt 0:00:00]} 5. O-O {[%emt 0:00:00]} Be7 {[%emt 0:00:00]} 6. Bxc6 {[%emt 0:00:00]} dxc6 {[%emt 0:00:00]} 7. d3 {[%emt 0:00:00]} Nd7 {[%emt 0:00:00]} 8. Nbd2 {[%emt 0:00:00]} Bd6 {[%emt 0:00:00] C85: Closed Ruy Lopez: Deferred Exchange Variation} 9. Nc4 {[%emt 0:00:00]} O-O {[%emt 0:00:00]} 10. Bd2 {[%emt 0:00:00]} (10. d4 Qe7 11. Re1 Re8 12. b3 c5 13. dxe5 Nxe5 14. Nxd6 cxd6 15. Nd2 Ng4 16. Nf3 Ne5 17. Nd2 Ng4 18. Nf3 {½-½ (18) Andreikin,D (2702)-Kovalev,V (2650) Minsk 2018}) 10... c5 {[%emt 0:00:00]} 11. Qe2 {[%emt 0:00:00]} Re8 {[%emt 0:00:00]} 12. g3 $146 {[%emt 0:00:00]} ({Predecessor:} 12. Rab1 Nb8 13. Be3 Nc6 14. Nfd2 Be6 15. Nxd6 Qxd6 16. f4 Nd4 17. Qd1 exf4 18. Bxf4 Qd7 19. Nb3 b6 {½-½ (19) Delgado Ramirez,N (2557)-Gonzalez Vidal,Y (2481) Santa Clara 2004}) 12... Nb8 {[%emt 0:00:00]} 13. Nh4 {[%emt 0:00:00]} Nc6 {[%emt 0:00:00]} 14. c3 {[%emt 0:00:00]} Be7 {[%emt 0:00:00]} 15. Ng2 {[%emt 0:00:00]} Be6 {[%emt 0:00:00]} 16. b3 {[%emt 0:00:00]} Qd7 {[%emt 0:00:00]} 17. Rad1 {[%emt 0:00:00]} a5 {[%emt 0:00:00]} 18. a4 {[%emt 0:00:00]} Rad8 {[%emt 0:00:00]} 19. Bc1 {[%emt 0:00:00]} Bf8 {[%emt 0:00:00]} 20. Nge3 {[%emt 0:00:00]} f5 {[%emt 0:00:00]} (20... g6 $11) 21. f4 {[%emt 0:00:00]} (21. Nxf5 $14 Bxf5 22. exf5) 21... exf4 {[%emt 0:00:00]} 22. Rxf4 {[%emt 0:00:00]} fxe4 {[%emt 0:00:00]} 23. dxe4 {[%emt 0:00:00]} Qc8 {[%emt 0:00:00]} 24. Rdf1 {[%emt 0:00:00]} Bd6 {[%emt 0:00:00]} ({Black should try} 24... g6 $15) 25. Nxd6 {[%emt 0:00:00]} cxd6 {[%emt 0:00:00]} 26. c4 {[%emt 0:00:00]} Ne5 {[%emt 0:00:00]} 27. Bb2 {[%emt 0:00:00]} Ng6 {[%emt 0:00:00]} 28. R4f2 {[%emt 0:00:00]} Qc6 {[%emt 0:00:00]} 29. Nd5 {[%emt 0:00:00]} Bxd5 {[%emt 0:00:00]} 30. cxd5 {[%emt 0:00:00]} Qd7 {[%emt 0:00:00]} 31. Rf5 {[%emt 0:00:00]} (31. h4 $14) 31... Qe7 {[%emt 0:00:00] [#]} (31... Re7 $11 {keeps the balance.}) 32. Qg4 $1 {[%emt 0:00:00]} Rf8 {[%emt 0:01:48]} 33. h4 {[%emt 0:00:00]} Rxf5 {[%emt 0:02:34]} 34. Rxf5 {[%emt 0:00:00]} ({Don't play} 34. exf5 $6 Qe3+ 35. Rf2 Rf8 $11) 34... Rf8 {[%emt 0:00:54]} 35. h5 {[%emt 0:00:00]} Rxf5 {[%emt 0:00:22]} 36. Qxf5 {[%emt 0:00:00]} Nf8 {[%emt 0:02:20]} 37. Kg2 $16 {[%emt 0:00:00]} Qf7 {[%emt 0:05:02]} 38. Qg5 {[%emt 0:00:00]} h6 {[%emt 0:01:22]} 39. Qg4 {[%emt 0:00:00]} Nh7 {[%emt 0:01:53]} 40. Qc8+ {[%emt 0:00:00]} Nf8 {[%emt 0:00:13]} 41. Qg4 {[%emt 0:00:29]} b6 {[%emt 0:02:49]} 42. Bc3 {[%emt 0:01:46]} Nh7 {[%emt 0:00:57]} 43. Qc8+ {[%emt 0:00:49]} Nf8 {[%emt 0:00:17]} 44. Qg4 {[%emt 0:00:39]} Nh7 {[%emt 0:00:00]} 45. Qc8+ {[%emt 0:00:00]} Nf8 {[%emt 0:00:00]} 46. Qg4 {[%emt 0:00:00]} Nh7 {[%emt 0:02:49]} 47. Qe6 {[%emt 0:00:01]} Ng5 {[%emt 0:00:09]} 48. Qxf7+ {[%emt 0:00:02]} Kxf7 {[%emt 0:00:21]} 49. e5 dxe5 50. Bxe5 Ne4 {[%emt 0:00:02]} 51. Bf4 {[%emt 0:00:21]} 1/2-1/2

[Event "Oslo Chess Festival 2018"]
[Site "Oslo"]
[Date "2018.10.04"]
[Round "7"]
[White "Movsziszian, Karen"]
[Black "Basso, Pier Luigi"]
[Result "1/2-1/2"]
[ECO "A14"]
[WhiteElo "2523"]
[BlackElo "2530"]
[Annotator "ChessBase"]
[PlyCount "22"]
[EventDate "2018.09.30"]
[EventCountry "NOR"]
[SourceTitle "playchess.com"]
[Source "ChessBase"]
[SourceQuality "1"]
[TimeControl "90/30+30:0"]

1. g3 {[%emt 0:00:00]} d5 {[%emt 0:00:00]} 2. Nf3 {[%emt 0:00:00]} Nf6 {[%emt 0:00:00]} 3. Bg2 {[%emt 0:00:00]} e6 {[%emt 0:00:00]} 4. O-O {[%emt 0:00:00]} Be7 {[%emt 0:00:00]} 5. c4 {[%emt 0:00:00]} O-O {[%emt 0:00:00]} 6. d3 {[%emt 0:00:00]} b6 {[%emt 0:00:00]} 7. b3 {[%emt 0:00:00]} Bb7 {[%emt 0:00:00]} 8. Bb2 {[%emt 0:00:00]} c5 {[%emt 0:00:00]} 9. e3 {[%emt 0:00:00]} Nc6 {[%emt 0:00:00]} 10. Qe2 {[%emt 0:00:00]} Rc8 {[%emt 0:00:00]} 11. Rd1 {[%emt 0:00:00]} Rc7 {[%emt 0:00:00]} 1/2-1/2

[Event "Oslo Chess Festival 2018"]
[Site "Oslo"]
[Date "2018.10.04"]
[Round "7"]
[White "Pakleza, Zbigniew"]
[Black "Dziuba, Marcin"]
[Result "1/2-1/2"]
[ECO "D84"]
[WhiteElo "2502"]
[BlackElo "2573"]
[Annotator "ChessBase"]
[PlyCount "32"]
[EventDate "2018.09.30"]
[EventCountry "NOR"]
[SourceTitle "playchess.com"]
[Source "ChessBase"]
[SourceQuality "1"]
[TimeControl "90/30+30:0"]

1. d4 {[%emt 0:00:00]} Nf6 {[%emt 0:00:00]} 2. c4 {[%emt 0:00:00]} g6 {[%emt 0:00:00]} 3. Nc3 {[%emt 0:00:00]} d5 {[%emt 0:00:00]} 4. Bf4 {[%emt 0:00:00]} Bg7 {[%emt 0:00:00]} 5. e3 {[%emt 0:00:00]} O-O {[%emt 0:00:00]} 6. cxd5 {[%emt 0:00:00]} Nxd5 {[%emt 0:00:00]} 7. Nxd5 {[%emt 0:00:00]} Qxd5 {[%emt 0:00:00]} 8. Bxc7 {[%emt 0:00:00]} Na6 {[%emt 0:00:00]} 9. Bxa6 {[%emt 0:00:00]} Qxg2 {[%emt 0:00:00]} 10. Qf3 {[%emt 0:00:00]} Qxf3 {[%emt 0:00:00]} 11. Nxf3 {[%emt 0:00:00]} bxa6 {[%emt 0:00:00]} 12. Rc1 {[%emt 0:00:00]} f6 {[%emt 0:00:00]} 13. Rg1 {[%emt 0:00:00]} Rf7 {[%emt 0:00:00]} 14. Ba5 {[%emt 0:00:00]} Bb7 {[%emt 0:00:00]} 15. Nd2 {[%emt 0:00:00]} e6 {[%emt 0:00:00]} 16. Nc4 {[%emt 0:00:00]} Rd7 {[%emt 0:00:00]} 1/2-1/2